Cogmind - Beta 16.1 @@@ ROGUE MODE // 2026.03.07 @ 16:46:05 Player: Endlessblaze Result: Destroyed by JB-PPL(R) with Subdweller Machine Gun Performance ------------- Evolutions (0) 0 Regions Visited (2) 400 Robots Destroyed (19) 95 Value Destroyed (469) 469 Prototype IDs (0) 0 Alien Tech Used (0) 0 Bonus (0) 0 TOTAL SCORE: 964 Bonus ------- None Cogmind --------- Core Integrity 0/250 Matter 232/300 Energy 200/200 System Corruption 1% Temperature Cool (0) Movement Rolling (110) Location -10/Subcaves Parts ------- > --- POWER (1) -------- Subdweller Power Source > --- PROPULSION (2) --- Subdweller Monowheel > --- UTILITY (2) ------ Heat Sink > --- WEAPON (2) ------- Heavy Hammer > --- INVENTORY (5) ---- Armored Wheel Armored Wheel Subdweller Optics Improved Terrain Scanner Subdweller Laser Peak State ------------ > --- POWER ------------ Ion Engine > --- PROPULSION ------- Armored Wheel Armored Wheel > --- UTILITY ---------- Improved Terrain Scanner Seismic Detector > --- WEAPON ----------- Beam Rifle Beam Rifle > --- INVENTORY -------- Armored Wheel Armored Wheel Heat Sink Mining Laser Heavy Hammer [Rating: 13] Favorites ----------- Power Ion Engine Engine Ion Engine Propulsion Armored Wheel Leg Aluminum Leg Wheel Armored Wheel Utility Seismic Detector Device Seismic Detector Weapon Beam Rifle Energy Gun Beam Rifle Ballistic Gun Assault Rifle Impact Weapon Heavy Hammer Build | -11 -10 -10 ------- Run | Yrd Mat Sub Slots Evolved . | . . . Power . | . . . Propulsion . | . . . Utility . | . . . Weapon . | . . . Parts Attached 22 | 7 7 8 Power 3 | 1 1 1 Engine 3 | 1 1 1 Core . | . . . Reactor . | . . . Propulsion 5 | 2 2 1 Treads . | . . . Leg 2 | 2 . . Wheel 3 | . 2 1 Hover . | . . . Flight . | . . . Utility 6 | 2 2 2 Device 6 | 2 2 2 Storage . | . . . Processor . | . . . Hackware . | . . . Protection . | . . . Artifact . | . . . Weapon 8 | 2 2 4 Energy Gun 5 | 1 2 2 Energy Cannon . | . . . Ballistic Gun 2 | 1 . 1 Ballistic Cannon . | . . . Launcher . | . . . Special Weapon . | . . . Impact Weapon 1 | . . 1 Slashing Weapon . | . . . Piercing Weapon . | . . . Special Melee Weapon . | . . . Unidentified Prototypes . | . . . Corrupted Parts 1 | 1 . . System Corruption 1 | 1 . . Parts Lost 6 | . . 6 Power 1 | . . 1 Propulsion 1 | . . 1 Utility 2 | . . 2 Weapon 2 | . . 2 Highest Loss Streak 3 | . . 3 To Critical Strikes . | . . . Average Backups 4 | . 4 5 Power . | . . . Propulsion 1 | . 1 2 Utility 1 | . . 1 Weapon 1 | . 1 1 Tool/Special . | . . . Unused Backups 6 | . 2 4 Power . | . . . Propulsion 4 | . 2 2 Utility 1 | . . 1 Weapon 1 | . . 1 Tool/Special . | . . . Average Slot Usage (%) 96 | . 98 96 Engine 13 | . 14 13 Leg 6 | . 22 . Wheel 21 | . 5 27 Device 26 | . 26 26 Energy Gun 18 | . 15 20 Ballistic Gun 5 | . 12 3 Impact Weapon 2 | . . 3 Peak Build Rating 13 | 9 13 13 Average Rating 10 | 4 9 12 On Entrance 7 | . 9 12 Avg Prop Armor Cover (%) 17 | 19 13 . Naked Turns . | . . . Heaviest Build 15 | 11 13 15 Greatest Support 32 | 20 24 32 Greatest Overweight (x) 3 | 2 3 . Average Overweight (x) . | . . . Largest Inventory Capacity 5 | 5 5 5 Average Capacity 5 | 5 5 5 Most Carried 5 | 1 5 5 Average Carried 4 | . 4 4 Final Capacity 5 | 5 5 5 Final Carried 5 | 1 5 5 Class Distribution -------------------- 96% | Mutant 3% | Scavenger-Mutant Dominant Class ---------------- Mutant | -10/Materials Mutant | -10/Subcaves Resources | -11 -10 -10 ----------- Run | Yrd Mat Sub Matter Collected 462 | 238 . 224 Remotely . | . . . Salvage Created 802 | 200 297 305 Parts 50 | 17 17 16 Haulers Intercepted . | . . . Recyclers Shooed 1 | 1 . . Parts Field Recycled . | . . . Retrieved Matter . | . . . Parts Self-Destructed 3 | . . 3 Prevented . | . . . Parts Restored . | . . . Kills | -11 -10 -10 ------- Run | Yrd Mat Sub Combat Hostiles Destroyed 11 | . 5 6 Guns 8 | . 3 5 AOE 2 | . 2 . Classes Destroyed 6 | 2 1 3 Tunneler 6 | 5 1 . Recycler 2 | 1 1 . Grunt 5 | . 5 . Sentry 1 | . . 1 Artisan 1 | . . 1 Subdweller 5 | . . 5 Best Kill Streak 6 | 6 4 2 Combat Bots Only 3 | . 3 2 Max Kills in Single Turn 2 | 1 2 1 Gunslinging . | . . . Exploded 2 | . 2 . Melee . | . . . Uniques/NPCs Destroyed . | . . . Combat | -11 -10 -10 -------- Run | Yrd Mat Sub Hostile Shots Fired 79 | . 19 60 Missed 22 | . 6 16 Hits 57 | . 13 44 Projectile 57 | . 13 44 Critical Strikes 2 | . . 2 Damage Taken 1017 | . 146 871 Core 271 | . 22 249 Absorbed by Shields . | . . . Core Remaining (%) 100 | 100 . . Volleys Fired 87 | 9 11 67 Largest 2 | 2 2 2 Hottest 120 | 60 112 120 Shots Fired 128 | 18 22 88 Gun 128 | 18 22 88 Cannon . | . . . Launcher . | . . . Special . | . . . Kinetic 40 | 9 10 21 Thermal 69 | . 2 67 Explosive . | . . . Electromagnetic 19 | 9 10 . Robot Hit Streak 18 | 3 6 18 Robot Miss Streak 3 | 2 3 2 Penetration Max . | . . . Secondary Targets 3 | . 2 1 Max Gunslinging Chain 1 | . 1 1 Shots Hit Robots 86 | 9 12 65 Core Hits 25 | 6 7 12 Critical Kills . | . . . Critical Parts Destroyed . | . . . Critical Strikes 2 | . 1 1 Burn 1 | . . 1 Corrupt 1 | . 1 . Melee Attacks 8 | . . 8 Impact 8 | . . 8 Slashing . | . . . Piercing . | . . . Sneak Attacks . | . . . Combat Hostiles . | . . . Follow-up Attacks . | . . . Damage Inflicted 1315 | 117 216 982 Guns 1086 | 117 147 822 Cannons . | . . . Explosions 69 | . 69 . Melee 160 | . . 160 Ramming . | . . . Kinetic 209 | 61 22 126 Thermal 780 | . 84 696 Explosive . | . . . Electromagnetic 166 | 56 110 . Impact 160 | . . 160 Slashing . | . . . Piercing . | . . . Highest Corruption 1 | 1 1 1 Average Corruption 1 | 1 1 1 Corruption Purged . | . . . Corruption Blocked . | . . . Effects 9 | . 4 5 Message Errors 1 | . 1 . Matter Fused 2 | . 1 1 Heat Flow Errors 1 | . . 1 Energy Discharges 3 | . 1 2 Parts Rejected 1 | . 1 . Data Loss (minor) 1 | . . 1 Overload Shots . | . . . Overflow Damage 12 | . . 12 Projectiles . | . . . Explosions . | . . . Melee 12 | . . 12 Knockbacks . | . . . Impact . | . . . Kinetic . | . . . Secondary . | . . . Self-Inflicted Damage . | . . . Shots . | . . . Rammed . | . . . Targets Rammed . | . . . Kicked . | . . . Crushed . | . . . Highest Temperature 124 | . 24 124 Average Temperature 22 | . 17 39 Received Heat Transfer 183 | . 81 102 Siege Activations . | . . . Martial Activations . | . . . Shielding Activations . | . . . Robots Disrupted . | . . . Combat Hostiles . | . . . Robots Corrupted 1 | . . 1 Combat Hostiles 1 | . . 1 Parts Fried 2 | . . 2 Impact Corruptions 1 | . . 1 Robots Melted . | . . . Combat Hostiles . | . . . Parts Melted 1 | . . 1 Heat Transferred 1328 | . 87 1241 Parts Sabotaged . | . . . Parts Stolen . | . . . Parts Stripped . | . . . Power Chain Reactions 1 | . 1 . Alert | -11 -10 -10 ------- Run | Yrd Mat Sub Maximum Alert Level . | . . . Low Security (%) 100 | 100 100 . Level 1 . | . . . Level 2 . | . . . Level 3 . | . . . Level 4 . | . . . Level 5 . | . . . High Security . | . . . Max Security . | . . . Peak Influence 82 | 15 82 . Initial 6 | . 6 . Average 30 | 3 41 . Influence Increases 187 | 30 137 20 Destroy 0b10 Robot/C 120 | . 100 20 Destroy 0b10 Robot/NC 40 | 30 10 . Destroy Leader 10 | . 10 . Destroy Structure 2 | . 2 . Lose Combat Pursuer 15 | . 15 . Influence Decreases 187 | 20 110 57 Entered New Map 22 | . 4 18 Time Decay 165 | 20 106 39 Squads Dispatched 3 | . 3 . Investigation 2 | . 2 . Extermination . | . . . Reinforcement 1 | . 1 . Assault . | . . . Garrison . | . . . Intercept . | . . . Searches Triggered . | . . . Construction Impeded . | . . . Haulers Reinforced . | . . . Active Scanning Responses . | . . . Cargo Convoy Interrupts . | . . . Stealth | -11 -10 -10 --------- Run | Yrd Mat Sub Distress Signals 1 | . 1 . Communications Jammed . | . . . Distress Signals . | . . . Times Spotted 17 | . 10 7 Peak Tracking Total 6 | . 6 2 Tactical Retreats 1 | . 1 . Traps | -11 -10 -10 ------- Run | Yrd Mat Sub Traps Triggered 1 | . 1 . Indirectly . | . . . Trap Hack Attempts . | . . . Triggered . | . . . Disarmed . | . . . Reprogrammed . | . . . Reused . | . . . Traps Extracted . | . . . Installed . | . . . Triggered . | . . . Machines | -11 -10 -10 ---------- Run | Yrd Mat Sub Machines Disabled . | . . . Max in Single Turn . | . . . Machines Repaired . | . . . Machines Dismantled . | . . . Machines Sabotaged . | . . . Overloaded Fab Kills . | . . . Hacking | -11 -10 -10 --------- Run | Yrd Mat Sub Machines Accessed 2 | . 2 . Terminals 1 | . 1 . Fabricators . | . . . Repair Stations . | . . . Recycling Units 1 | . 1 . Scanalyzers . | . . . Garrison Access . | . . . Total Hacks 3 | . 3 . Successful 1 | . 1 . Failed 2 | . 2 . Catastrophic 2 | . 2 . Database Lockouts . | . . . Manual 2 | . 2 . Terminals 1 | . 1 . Fabricators . | . . . Repair Stations . | . . . Recycling Units 2 | . 2 . Scanalyzers . | . . . Garrison Access . | . . . Terminal Hacks . | . . . Fabricator Hacks . | . . . Repair Station Hacks . | . . . Recycling Unit Hacks 1 | . 1 . Report Inventory 1 | . 1 . Scanalyzer . | . . . Garrison Access Hacks . | . . . Unauthorized Hacks . | . . . Terminals . | . . . Fabricators . | . . . Repair Stations . | . . . Recycling Units . | . . . Scanalyzers . | . . . Garrison Access . | . . . Data Cores Recovered . | . . . Used . | . . . Hacking Detections 2 | . 2 . Full Trace Events 1 | . 1 . Feedback Events . | . . . Feedback Blocked . | . . . Robot Schematics Acquired . | . . . Robots Built . | . . . Authchips . | . . . Time . | . . . Total Robot Build Rating . | . . . Part Schematics Acquired . | . . . Parts Built . | . . . Authchips . | . . . Time . | . . . Total Part Build Rating . | . . . Part Studies Acquired . | . . . Parts Repaired . | . . . Time . | . . . Parts Recycled . | . . . Recycled Matter . | . . . Retrieved Matter . | . . . Retrieved Components . | . . . Parts Scanalyzed . | . . . Part Schematics Acquired . | . . . Parts Damaged . | . . . Bothacking | -11 -10 -10 ------------ Run | Yrd Mat Sub Used RIF Installer . | . . . Robots Hacked . | . . . Non-combat . | . . . Combat . | . . . Robot Hacks Applied . | . . . Relay Couplers Released . | . . . Fabnet Peak Effective % . | . . . Robots Rewired . | . . . Allies Hacked . | . . . Hacks Repelled . | . . . Allies | -11 -10 -10 -------- Run | Yrd Mat Sub Total Allies . | . . . Largest Group . | . . . Highest-Rated Group . | . . . Highest-Rated Ally . | . . . Total Orders . | . . . Ally Attacks . | . . . Total Damage . | . . . Kills . | . . . Allies Corrupted . | . . . Allies Melted . | . . . Intel | -11 -10 -10 ------- Run | Yrd Mat Sub Active Infowar (turns) 789 | 6 229 554 Terrain 215 | 6 209 . Seismic 768 | . 214 554 Robot Analysis Total . | . . . Derelict Logs Recovered . | . . . Drone Launches . | . . . Drone Recoveries . | . . . Exploration | -11 -10 -10 ------------- Run | Yrd Mat Sub Turns Passed 913 | 96 229 588 Spaces Moved 520 | 50 150 320 Core 28 | 24 4 . Treads . | . . . Legs 148 | 26 122 . Wheels 344 | . 24 320 Hover . | . . . Flight . | . . . Fastest Speed 50 | 50 90 90 Average Speed 102 | 115 117 93 Slowest Speed 200 | 150 200 110 Overloaded Moves . | . . . Propulsion Burnouts . | . . . Robots Hopped . | . . . Potential Cave-ins . | . . . Cave-ins Triggered . | . . . Exploration Rate (%) 18 | 4 39 11 Regions Visited 2 Branch Regions 1 Pre-discovered Areas . | . . . Known Exits Taken . | . . . Unknown Exits Taken 2 | 1 1 . Scrap Searched . | . . . Spaces Dug . | . . . Terrain Destroyed 2 | . 2 . Melee . | . . . Projectile . | . . . AOE 2 | . 2 . Terrain Rammed . | . . . Walls Destroyed . | . . . Machines Disabled . | . . . Actions | -11 -10 -10 --------- Run | Yrd Mat Sub Total 751 | 66 180 505 Wait 98 | . . 98 Move 518 | 49 149 320 Hop . | . . . Pick Up 9 | 1 7 1 Fast Attach 16 | 7 4 5 Attach . | . . . Detach . | . . . Swap 6 | . 3 3 Drop 9 | . 6 3 Fire 87 | 9 11 67 Melee 8 | . . 8 Ram . | . . . Kick . | . . . Crush . | . . . Escape Stasis . | . . . Rewire . | . . . Trap . | . . . Miscellaneous . | . . . Route ------- -11/Scrapyard -10/Materials -10/Subcaves History --------- Turn | Location | Event 9 | -11/Scrapyard | Discovered new exit (range 15) 97 | -11/Scrapyard | Entered Materials 311 | -10/Materials | Discovered new exit (range 12) 326 | -10/Materials | Entered Subcaves 327 | -10/Subcaves | Build established: Mutant 468 | -10/Subcaves | Shifting Twisted Machinery released Sub. Laser 470 | -10/Subcaves | Shifting Twisted Machinery released Battle Rifle 591 | -10/Subcaves | Core integrity fell below 50% 895 | -10/Subcaves | Core integrity fell below 20% 914 | -10/Subcaves | Destroyed by JB-PPL(R) with Subdweller Machine Gun Last Messages --------------- 00730_ 3D-JKJ(u) builds Twisted Machinery. 00745_ Sub. Laser shoots sparks and powers down. 00751_ System corrupted: Heat flow error (+174). 00754_ Subatomizers dissect the Mining Laser. 00760_ Dropped Broken Sub. Laser. 00761_ Acquired Battle Rifle. 00797_ 3D-JKJ(u) cries out in pain. 00797_ 3D-JKJ(u) destroyed. 00805_ Acquired 20 matter. 00852_ JB-PPL(R): "SUBMAD!" 00880_ Seismic Detector destroyed. 00882_ Arm. Wheel destroyed. 00895_ Battle Rifle destroyed. 00900_ Destroyed Sub. Optics. 00900_ QO-6T0(R) system corrupted by crushing effect. 00901_ QO-6T0(R) system terminally corrupted. 00901_ Sub. Laser fried. 00901_ Sub. Monowheel fried. 00907_ JB-PPL(R) affixes Scrap Shield Fragment to Scrap Shield. Map ----- +----------------------------------------------------+ | ?????????????????????????? #?????????????????????? | | ?????????????????????????? ##??????#?????????????? | | ?????????????????????????? ????? #????????????? | | ?????????????????????????? ????? ????????????? | | ?????????????????????????? ???? ???????????? | | ?????????????????????????# #??? ????????????? | | ????????????????????????? ### ??????????????? | | ????????????????????????? ????????????????? | | ????????????????????????? ??????????????????? | | ?????????????????????#### ????????????????????? | | ????????????????????## ??????????????????????? | | ????????????????????# ##??????????????????????? | | ????????????????####### #??????????????????????? | | ????????????????# #?# #??????????????????????? | | ????????????????# #?## ##?????????????????????? | | ????????????????#!%### ##????????????????????? | | ???????????????## # ###??????????????????? | | ???????????????# #??????????????????? | | ???????????????## " ##??????????????????? | | ???????????????## # ## ""####??? ?????????????? | | ???????????????# ##### ##""" ??" ????????????? | | ???????????????# ##### ""#"" #? " ????????????? | | ???????????????## # ## "## ""## " ?????????????? | | ??????????????## #" ## "" "??????????????? | | ??????????????# ## ""????????????????? | | ??????????????# "R@ # #?????????????????? | | ??????????????### & # % #?????????????????? | | ????????????????## "" !"##& #?????????????????? | | ?????????????????# " ! "#???###???????????? | | ?????????????????# "##??## ##??????????? | | ?????????????????# ##???# #??????????? | | ?????????????????## "###????## #??????????? | | ??????????????????## ###???###?## ####???????? | | ???????????????????## ##????##"#### #???????? | | ???????????????###### ###?###?# " ## #???????? | | ???????????????# #"" #### ###"" #???????? | | ???????????????# ""#"" &# ## * #???????? | | ??????????????##"""" &[& = ##?####### | | ??????????????#"" [# ## # #####"" | | ??????????????# ####### ## ###" | | ??????????????## #?????## ## ## ^ | | ???????????????##"""#?????# ## ## & "# | | ????????????????#""##????# ###### "# | | ????????????????#""#????""" #????# ## ""# | | ????????????????##""???""" #????########" #"## | | ?????????????????""" ?? #???????????#######? | | ?????????????????# ??? # #??????????????????? | | ??????????????????????#?# ??????????????????? | | ???????????????????????? ## ??????????????????? | | ???????????????????????## #?# #?????????????????? | +----------------------------------------------------+ Best States ------------- Heat Dissipation 35 Coolant Potential 50 Energy Generation 15 Energy Capacity 250 Matter Stores 300 Matter Capacity 300 Sight Range 16 Terrain Scan Range 16 Terrain Scan Density 10 Evasion (%) 55 Item Schematics ----------------- None Robot Schematics ------------------ None Fabricated ------------ Nothing Repaired ---------- Nothing Studied --------- None Alien Tech Used ----------------- None Achievements -------------- None Challenges ------------ None Game ------ Seed ChargeIntegratedGravjet Manual? 0 Play Time 00:13:24 Cumulative 57.2 hours Start 2026.03.07 @ 13:02:55 End 2026.03.07 @ 16:46:05 Sessions 1 Manual Loads 0 Difficulty Rogue Special Mode None Game No. 82 Rogue 82 Adventurer 0 Explorer 0 Win Type - Total 0 Types 0/0/0/0/0/0/0/0/0/0 Lore% 42 Gallery% 33 Achievement% 25 Wizard Run 0 Options --------- Layout 1 ASCII 0 Keyboard 0 Movement Arrows Keybinds 0 Fullscreen 1 Font 16/SmallcapsGlow Map View 55x38 Zoom Use 0% Tactical HUD 1 Map Filters NONE Filters NONE Steam 1 RUN: e2799bee-15ed-4b77-bac1-480093501ca1